bitfinex/quotes_SOLUSD_20250207
["timestamp","ask_amount","ask_price","bid_price","bid_amount"]
[1738961255355,81.3,190.77,190.74,26.32378735]
[1738961255771,81.3,190.77,190.73,26.38678735]
[1738961256193,81.3,190.77,190.74,26.32378735]
[1738961256459,0.03,190.78,190.76,26.32378735]
[1738961256790,0.03,190.78,190.77,26.32378735]
[1738961257373,0.03,190.78,190.77,31.56568735]
[1738961258094,0.03,190.78,190.76,26.32378735]
[1738961258257,0.03,190.78,190.75,37.78838735]
[1738961258559,0.03,190.78,190.76,26.32378735]
[1738961258767,0.03,190.78,190.75,32.54598735]
[1738961258955,0.03,190.78,190.74,26.32378735]
[1738961259159,0.03,190.78,190.76,26.32378735]
[1738961259385,0.03,190.78,190.75,26.32378735]
[1738961259761,0.03,190.78,190.76,26.32378735]
[1738961260000,0.03,190.78,190.77,26.32378735]
[1738961260181,0.03,190.78,190.77,26.44927735]
[1738961260962,0.03,190.78,190.77,39.98661588]
[1738961261166,0.03,190.86,190.8,20.0]
[1738961261387,0.03,190.86,190.84,26.32378735]
[1738961261594,0.03,190.86,190.82,26.32378735]
[1738961262167,0.03,190.86,190.8,26.32378735]
[1738961262493,5.2,190.85,190.81,26.32378735]
[1738961263169,5.2,190.85,190.83,26.32378735]
[1738961263385,5.2,190.85,190.82,26.32378735]
[1738961264168,5.2,190.85,190.81,26.32378735]
[1738961264382,5.2,190.85,190.8,26.32378735]
[1738961264691,36.76348735,190.85,190.78,26.32378735]
[1738961264890,26.32378735,190.84,190.77,26.32378735]
[1738961265086,31.52378735,190.83,190.76,26.32378735]
[1738961265293,5.2,190.82,190.76,26.32378735]
[1738961265486,5.2,190.82,190.77,26.32378735]
[1738961265803,5.2,190.82,190.77,31.56568735]
[1738961265999,10.4406,190.82,190.77,26.32378735]
[1738961266199,5.2,190.82,190.77,31.56548735]
[1738961266505,5.2,190.82,190.77,26.32378735]
[1738961266873,5.2,190.82,190.8,26.32378735]
[1738961267094,5.2,190.85,190.81,26.32378735]
[1738961269801,10.4397,190.85,190.79,26.32378735]
[1738961270001,36.76348735,190.85,190.78,26.32378735]
[1738961270299,26.32378735,190.81,190.75,26.32378735]
[1738961270498,5.2,190.8,190.75,26.32378735]
[1738961270714,5.2,190.81,190.75,26.32378735]
[1738961271392,26.32378735,190.8,190.74,26.32378735]
[1738961271697,10.4412,190.8,190.74,26.32378735]
[1738961272086,26.32378735,190.81,190.74,26.32378735]
[1738961272087,0.03,190.86,190.79,76.57476735]
[1738961272399,0.03,190.86,190.85,26.32378735]
[1738961273397,0.03,190.86,190.85,69.98661588]
[1738961273779,0.0001,190.86,190.85,76.22631588]
[1738961273981,0.03,190.94,190.89,0.12549]
[1738961274184,0.03,190.94,190.93,26.32378735]
[1738961274514,0.03,190.94,190.93,39.98661588]
[1738961275524,0.03,190.94,190.93,26.32378735]
[1738961276304,0.03,190.94,190.93,31.56128735]
[1738961277610,0.03,190.94,190.93,75.22411588]
[1738961277793,0.03,190.97,190.96,20.12549]
[1738961277999,0.03,190.97,190.96,59.86112588]
[1738961278417,0.03,190.97,190.96,46.32378735]
[1738961279599,0.03,190.97,190.96,51.56038735]
[1738961280623,0.03,190.97,190.96,66.22321588]
[1738961281114,0.03,190.98,190.97,44.53733853]
[1738961281321,0.03,191.0,190.99,53.8985547]
[1738961281496,0.03,191.0,190.99,72.54620323]
[1738961281701,0.03,191.0,190.99,31.68507735]
[1738961281909,0.03,191.0,190.99,31.55958735]
[1738961282131,0.03,191.0,190.99,26.32378735]
[1738961282503,0.03,191.0,190.97,20.0]
[1738961282705,0.03,191.0,190.97,26.32378735]
[1738961282906,0.03,191.0,190.98,26.32378735]
[1738961283737,0.03,191.0,190.99,26.32378735]
[1738961284235,0.03,191.0,190.97,26.32378735]
[1738961284621,0.03,191.0,190.95,26.32378735]
[1738961284817,5.2,190.99,190.94,26.32378735]
[1738961285028,31.52378735,190.99,190.97,0.063]
[1738961285530,26.32378735,190.98,190.97,0.063]
[1738961286009,10.4361,190.99,190.97,0.063]
[1738961286010,31.52378735,190.99,190.97,0.063]
[1738961286214,5.2,190.99,190.97,0.063]
[1738961286444,31.52378735,190.99,190.97,0.063]
[1738961286628,26.32378735,190.98,190.97,0.063]
[1738961286815,10.4359,190.99,190.97,0.063]
[1738961287022,26.32378735,190.98,190.97,0.063]
[1738961287358,107.62378735,190.98,190.97,0.063]
[1738961287520,107.62378735,190.98,190.85,26.32378735]
[1738961287521,26.32378735,190.92,190.85,26.32378735]
[1738961287728,5.2,190.91,190.87,26.32378735]
[1738961287924,31.56118735,190.94,190.87,26.32378735]
[1738961288517,26.32378735,190.93,190.86,31.56318735]
[1738961288717,5.2,190.92,190.86,31.56318735]
[1738961288926,5.2,190.92,190.88,26.32378735]
[1738961289127,5.2,190.93,190.89,26.32378735]
[1738961289934,5.2,190.93,190.88,26.32378735]
[1738961290146,31.52378735,190.93,190.86,31.56318735]
[1738961290354,36.76138735,190.93,190.86,26.32378735]
[1738961290543,36.76138735,190.93,190.86,31.56318735]
[1738961290858,26.32378735,190.92,190.86,31.56318735]
[1738961291060,26.32378735,190.89,190.82,26.32378735]
[1738961291223,5.2,190.9,190.84,26.32378735]
[1738961291430,31.52378735,190.9,190.84,26.32378735]
[1738961291645,26.32378735,190.88,190.82,26.32378735]
[1738961292457,31.52378735,190.87,190.8,44.97663588]
[1738961293157,5.2,190.87,190.81,26.32378735]
[1738961293460,36.76298735,190.87,190.8,31.56478735]
[1738961294159,26.32378735,190.86,190.8,31.56478735]
[1738961294454,26.32378735,190.84,190.78,26.32378735]
[1738961294644,5.2,190.83,190.77,26.32378735]
[1738961294955,5.2,190.83,190.78,26.32378735]
[1738961295160,26.32378735,190.81,190.75,26.32378735]
[1738961295333,26.32378735,190.8,190.73,31.62968735]
[1738961295531,5.2,190.79,190.73,26.38678735]
[1738961295735,31.52378735,190.79,190.73,0.063]
[1738961295959,31.52378735,190.78,190.73,0.063]
[1738961296136,5.2,190.78,190.73,26.38678735]
[1738961296337,5.2,190.78,190.73,0.063]
[1738961296646,5.2,190.77,190.73,0.063]
[1738961297033,31.52378735,190.77,190.73,0.063]
[1738961297232,36.76568735,190.77,190.73,0.063]
[1738961297433,10.4419,190.77,190.73,0.063]
[1738961297654,5.2,190.77,190.73,0.063]
[1738961300237,10.4419,190.77,190.73,0.063]
[1738961300859,26.32378735,190.74,190.73,0.063]
[1738961301564,31.56648735,190.74,190.73,0.063]
[1738961301735,26.32378735,190.75,190.73,0.063]
[1738961301930,26.32378735,190.74,190.73,0.063]
[1738961302467,26.32378735,190.75,190.73,0.063]
[1738961303031,36.76618735,190.76,190.73,0.063]
[1738961303755,26.32378735,190.75,190.73,0.063]
[1738961304467,31.56648735,190.75,190.73,0.063]
[1738961304960,26.32378735,190.74,190.73,0.063]
[1738961305563,31.56648735,190.75,190.73,0.063]
[1738961305856,5.2427,190.75,190.73,0.063]
[1738961306288,10.4422,190.76,190.73,0.063]
[1738961306852,26.32378735,190.74,190.73,0.063]
[1738961307358,5.2,190.75,190.73,0.063]
[1738961307359,31.52378735,190.75,190.73,0.063]
[1738961307558,5.2,190.75,190.73,0.063]
[1738961309161,26.32378735,190.74,190.73,0.063]
[1738961310473,31.56648735,190.74,190.73,0.063]
[1738961310782,26.32378735,190.74,190.73,0.063]
[1738961312079,31.56648735,190.74,190.73,0.063]
[1738961312884,112.86648735,190.74,190.73,0.063]
[1738961313373,31.56648735,190.74,190.73,0.063]
[1738961313571,38.94566324,190.74,190.73,0.0001]
[1738961314601,53.7730647,190.72,190.71,0.0001]
[1738961314797,68.29408199,190.72,190.71,0.0001]
[1738961315092,1.12549,190.69,190.6,0.063]
[1738961315270,26.32378735,190.61,190.6,0.063]
[1738961315793,27.30770203,190.61,190.6,0.063]
[1738961315965,32.55400203,190.61,190.6,0.063]
[1738961316469,58.87778938,190.61,190.6,0.063]
[1738961316794,1.0,190.59,190.54,0.063]
[1738961316960,26.32378735,190.55,190.54,0.063]
[1738961317359,27.30822383,190.55,190.54,0.063]
[1738961317881,1.12549,190.54,190.53,0.063]
[1738961318185,27.44927735,190.54,190.53,0.063]
[1738961318776,26.32378735,190.54,190.53,0.063]
[1738961320124,26.32378735,190.55,190.53,0.063]
[1738961320510,26.32378735,190.57,190.53,0.063]
[1738961320696,31.57088735,190.58,190.53,0.063]
[1738961320902,26.32378735,190.56,190.53,0.063]
[1738961321202,26.32378735,190.59,190.53,0.063]
[1738961321516,31.52378735,190.6,190.53,26.38678735]
[1738961321686,26.32378735,190.59,190.53,0.063]
[1738961321894,26.32378735,190.57,190.53,0.063]
[1738961322088,26.32378735,190.55,190.53,0.063]
[1738961322293,26.32378735,190.54,190.53,0.063]
[1738961323012,27.30806063,190.54,190.53,0.063]
[1738961323832,26.32378735,190.54,190.53,0.063]
[1738961324008,31.57198735,190.54,190.53,0.063]
[1738961324904,1.0,190.52,190.4,0.063]
[1738961325116,26.32378735,190.44,190.4,0.063]
[1738961325320,26.32378735,190.43,190.4,0.063]
[1738961325688,26.32378735,190.41,190.4,0.063]
[1738961326110,31.57558735,190.41,190.4,0.063]
[1738961326617,26.32378735,190.43,190.4,0.063]
[1738961327417,26.32378735,190.41,190.4,0.063]
[1738961327991,36.77558735,190.41,190.4,0.063]
[1738961328191,31.57558735,190.41,190.4,0.063]
[1738961328693,31.57558735,190.41,190.33,8.92145539]
[1738961328888,26.32378735,190.38,190.33,8.92145539]
[1738961329395,26.32378735,190.37,190.33,8.92145539]
[1738961329698,26.32378735,190.36,190.33,8.92145539]
[1738961329892,26.32378735,190.35,190.33,8.92145539]
[1738961330103,31.57728735,190.35,190.33,8.92145539]
[1738961330421,26.32378735,190.34,190.33,8.92145539]
[1738961331414,26.32378735,190.34,190.33,5.539e-05]
[1738961331415,27.30919813,190.34,190.33,5.539e-05]
[1738961331614,41.84653666,190.34,190.33,5.539e-05]
[1738961331824,21.0,190.31,190.25,12.9524366]
[1738961332027,31.57968735,190.26,190.25,12.9524366]
[1738961332194,26.32378735,190.28,190.25,12.9524366]
[1738961332393,31.57958735,190.27,190.25,12.9524366]
[1738961332624,0.98581477,190.26,190.25,12.9524366]
[1738961332832,6.24099011,190.29,190.25,39.27622395]
[1738961333029,5.2545,190.32,190.28,26.32378735]
[1738961333340,6.23968326,190.33,190.3,26.32378735]
[1738961333503,0.98545333,190.39,190.29,26.32378735]
[1738961333834,0.98545333,190.39,190.28,21.0]
[1738961334043,1.0,190.46,190.28,21.0]
[1738961334044,0.98528404,190.43,190.3,5.2548]
[1738961334215,0.98528404,190.43,190.34,1.0]
[1738961334710,5.2507,190.45,190.38,26.32378735]
[1738961334711,26.32378735,190.45,190.38,26.32378735]
[1738961335025,5.25,190.48,190.43,26.32378735]
[1738961335259,0.98467492,190.5,190.44,26.32378735]
[1738961335565,34.1317,190.54,190.47,26.32378735]
[1738961335566,21.0108,190.54,190.47,26.32378735]
[1738961335750,0.9844274,190.55,190.49,26.32378735]
[1738961335951,6.1843784,190.56,190.5,26.32378735]
[1738961336137,6.1843784,190.56,190.42,0.12549]
[1738961336138,6.18430312,190.58,190.52,26.32378735]
[1738961336329,6.18423881,190.6,190.54,26.32378735]
[1738961336524,26.32378735,190.62,190.55,26.32378735]
[1738961336758,26.32378735,190.64,190.57,26.32378735]
[1738961337129,26.32378735,190.59,190.52,26.32378735]
[1738961337353,26.32378735,190.56,190.49,26.32378735]
[1738961337561,26.32378735,190.56,190.48,46.32378735]
[1738961337757,26.32378735,190.58,190.51,26.32378735]
[1738961337968,26.32378735,190.62,190.55,26.32378735]
[1738961338263,26.32378735,190.62,190.54,26.32378735]
[1738961338768,5.2,190.65,190.58,26.32378735]
[1738961338769,26.32378735,190.65,190.58,26.32378735]
[1738961338942,26.32378735,190.7,190.63,26.32378735]
[1738961339137,5.2437,190.71,190.62,26.32378735]
[1738961339343,26.32378735,190.63,190.51,30.0]
[1738961339549,26.32378735,190.63,190.53,20.0]
[1738961339751,26.32378735,190.63,190.55,20.0]
[1738961339941,26.32378735,190.62,190.55,46.32378735]
[1738961340135,26.32378735,190.63,190.57,26.32378735]
[1738961340335,26.32378735,190.63,190.56,26.32378735]
[1738961340562,26.32378735,190.58,190.51,26.32378735]
[1738961340933,26.32378735,190.59,190.53,26.32378735]
[1738961341336,31.52378735,190.61,190.55,26.32378735]
[1738961341750,26.32378735,190.56,190.5,26.32378735]
[1738961341950,26.32378735,190.53,190.47,5.2501]
[1738961342268,26.32378735,190.58,190.51,26.32378735]
[1738961342470,26.32378735,190.57,190.51,26.32378735]
[1738961342965,26.32378735,190.56,190.49,26.32378735]
[1738961343169,26.32378735,190.51,190.44,26.32378735]
[1738961343333,0.98418518,190.55,190.43,26.32378735]
[1738961343334,26.32378735,190.49,190.43,26.32378735]
[1738961343538,26.32378735,190.49,190.41,5.2518]
[1738961343539,26.32378735,190.49,190.42,26.32378735]
[1738961343962,26.32378735,190.48,190.41,26.32378735]
[1738961344173,26.32378735,190.47,190.4,26.38678735]
[1738961344555,26.32378735,190.48,190.41,26.32378735]
[1738961344870,31.52378735,190.52,190.45,26.32378735]
[1738961345168,26.32378735,190.52,190.45,26.32378735]
[1738961345345,26.32378735,190.51,190.44,26.32378735]
[1738961345551,26.32378735,190.47,190.4,26.38678735]
[1738961345764,26.32378735,190.47,190.4,31.63878735]
[1738961345961,26.32378735,190.46,190.4,0.063]
[1738961346372,26.32378735,190.45,190.4,0.063]
[1738961346755,26.32378735,190.42,190.4,0.063]
[1738961347063,6.23494859,190.47,190.4,0.063]
[1738961347064,26.32378735,190.41,190.4,0.063]
[1738961348474,31.57558735,190.41,190.4,0.063]
[1738961349073,26.32378735,190.42,190.4,0.063]
[1738961349567,26.32378735,190.41,190.4,0.063]
[1738961349941,53.63249646,190.41,190.4,0.063]
[1738961350182,26.32378735,190.41,190.4,0.063]
[1738961350479,57.8993747,190.41,190.4,0.063]
[1738961350667,31.57558735,190.41,190.4,0.063]
[1738961351989,26.32378735,190.41,190.4,0.063]
[1738961352162,31.52378735,190.43,190.4,0.063]
[1738961352352,26.32378735,190.42,190.4,0.063]
[1738961352554,26.32378735,190.44,190.4,0.063]
[1738961352759,31.57418735,190.46,190.4,0.063]
[1738961352989,26.32378735,190.46,190.4,0.063]
[1738961353285,26.32378735,190.45,190.4,0.063]
[1738961353490,26.32378735,190.47,190.4,26.38678735]
[1738961353787,26.32378735,190.47,190.4,0.063]
[1738961353963,26.32378735,190.44,190.4,0.063]
[1738961354775,26.32378735,190.43,190.4,0.063]
[1738961355161,26.32378735,190.44,190.4,0.063]
[1738961355476,26.32378735,190.42,190.4,0.063]
[1738961355674,26.32378735,190.43,190.4,0.063]
[1738961355880,26.32378735,190.45,190.4,0.063]
[1738961356085,26.32378735,190.44,190.4,0.063]
[1738961356260,26.32378735,190.43,190.4,0.063]
[1738961356459,26.32378735,190.42,190.4,0.063]
[1738961357162,26.32378735,190.41,190.4,0.063]
[1738961357882,26.32378735,190.42,190.4,0.063]
[1738961358090,26.32378735,190.44,190.4,0.063]
[1738961358284,26.32378735,190.43,190.4,0.063]
[1738961358709,26.32378735,190.41,190.4,0.063]
[1738961360012,68.4793747,190.41,190.4,0.0001]
[1738961360506,37.94075707,190.41,190.4,0.0001]
[1738961360684,36.95558735,190.41,190.4,0.0001]
[1738961361010,37.94063466,190.41,190.4,0.0001]
[1738961361413,32.56063466,190.41,190.4,0.0001]
[1738961362610,58.88442201,190.41,190.4,0.0001]
[1738961362989,32.56063466,190.41,190.4,0.0001]
[1738961363203,32.56063466,190.41,190.33,0.063]
[1738961363204,74.01392201,190.41,190.33,0.063]
[1738961363410,26.32378735,190.34,190.33,0.063]
[1738961364882,31.57748735,190.34,190.33,0.063]
[1738961365376,45.98933588,190.34,190.33,0.0001]
[1738961365580,45.69749336,190.34,190.25,12.9524366]
[1738961365812,26.32378735,190.28,190.25,12.9524366]
[1738961366915,31.57778735,190.33,190.25,44.53222395]
[1738961367080,31.57778735,190.33,190.26,26.32378735]
[1738961367690,26.32378735,190.3,190.25,12.9524366]
[1738961367906,26.32378735,190.27,190.25,12.9524366]
[1738961368107,26.32378735,190.29,190.25,12.9524366]
[1738961368295,31.57778735,190.33,190.26,26.32378735]
[1738961368597,26.32378735,190.34,190.26,26.32378735]
[1738961368790,31.57828735,190.31,190.25,12.9524366]
[1738961368996,26.32378735,190.3,190.25,12.9524366]
[1738961369213,26.32378735,190.28,190.25,12.9524366]
[1738961369583,26.32378735,190.27,190.25,12.9524366]
[1738961369797,26.32378735,190.26,190.25,12.9524366]
[1738961370887,31.57968735,190.26,190.25,12.9524366]
[1738961371288,26.32378735,190.28,190.25,12.9524366]
[1738961371489,26.32378735,190.27,190.25,12.9524366]
[1738961371992,26.32378735,190.26,190.25,12.9524366]
[1738961372819,31.57968735,190.26,190.25,12.9524366]
[1738961373710,31.57968735,190.26,190.25,3.66e-05]
[1738961373911,20.0,190.23,190.13,0.063]
[1738961374088,26.32378735,190.2,190.13,0.063]
[1738961374289,26.32378735,190.19,190.13,0.063]
[1738961374516,26.32378735,190.2,190.13,26.38678735]
[1738961374698,6.18620326,190.22,190.13,0.063]
[1738961374900,5.2578,190.19,190.13,0.063]
[1738961375112,14.1399,190.26,190.14,26.32378735]
[1738961375113,31.58128735,190.21,190.14,26.32378735]
[1738961375527,5.2575,190.21,190.15,26.32378735]
[1738961375822,5.2575,190.21,190.13,0.063]
[1738961375823,26.32378735,190.2,190.13,0.063]
[1738961376133,31.58068735,190.23,190.16,26.32378735]
[1738961376310,26.32378735,190.22,190.15,26.32378735]
[1738961376728,26.32378735,190.21,190.14,26.32378735]
[1738961377026,26.32378735,190.21,190.13,0.063]
[1738961377027,26.32378735,190.24,190.17,26.32378735]
[1738961377194,6.18594231,190.27,190.18,26.32378735]
[1738961377195,26.32378735,190.25,190.18,26.32378735]
[1738961377396,26.32378735,190.19,190.13,0.063]
[1738961377629,26.32378735,190.2,190.13,26.38678735]
[1738961377811,26.32378735,190.21,190.14,26.32378735]
[1738961378533,26.32378735,190.23,190.16,26.32378735]
[1738961378706,26.32378735,190.22,190.15,26.32378735]
[1738961379025,26.32378735,190.23,190.16,26.32378735]
[1738961379525,26.32378735,190.28,190.17,0.12549]
[1738961379728,6.0828,190.33,190.26,26.32378735]
[1738961379729,26.32378735,190.33,190.26,26.32378735]
[1738961380098,26.32378735,190.31,190.24,26.32378735]
[1738961380326,26.32378735,190.31,190.22,1.75449]
[1738961380327,26.32378735,190.32,190.25,26.32378735]
[1738961380714,26.32378735,190.31,190.25,26.32378735]
[1738961381018,0.03,190.33,190.28,26.32378735]
[1738961381203,0.03,190.33,190.27,32.91688735]
[1738961381616,0.03,190.33,190.32,26.32378735]
[1738961382137,0.03,190.33,190.32,26.44927735]
[1738961382314,0.03,190.33,190.3,26.32378735]
[1738961382921,0.03,190.33,190.31,26.32378735]
[1738961383232,0.03,190.33,190.32,26.32378735]
[1738961383630,0.03,190.33,190.32,26.44927735]
[1738961384012,0.03,190.33,190.32,39.98661588]
[1738961384327,0.03,190.33,190.3,26.32378735]
[1738961384502,0.03,190.33,190.32,26.32378735]
[1738961384705,0.03,190.33,190.32,26.44927735]
[1738961384904,0.03,190.33,190.32,45.24091588]
[1738961385530,0.03,190.41,190.35,0.12549]
[1738961385733,0.03,190.41,190.37,26.32378735]
[1738961386138,0.03,190.41,190.4,26.32378735]
[1738961386308,26.35378735,190.41,190.35,26.32378735]
[1738961386511,26.35378735,190.41,190.33,1.6108]
[1738961386512,26.32378735,190.39,190.33,1.6108]
[1738961386734,5.2819,190.41,190.28,27.93458735]
[1738961386735,0.98500998,190.38,190.28,27.93458735]
[1738961386906,20.0,190.34,190.2,8.0105]
[1738961387104,0.98541108,190.33,190.2,9.0105]
[1738961387409,5.2,190.36,190.21,13.66282853]
[1738961387738,5.2,190.36,190.2,40.0105]
[1738961387946,26.32378735,190.32,190.25,26.32378735]
[1738961388237,26.32378735,190.32,190.26,26.32378735]
[1738961388442,26.32378735,190.3,190.23,26.32378735]
[1738961388646,26.32378735,190.29,190.22,26.32378735]
[1738961388940,5.2544,190.32,190.04,0.15]
[1738961388941,26.32378735,190.25,190.18,26.32378735]
[1738961389247,26.32378735,190.26,190.19,26.32378735]
[1738961390020,5.2561,190.26,190.2,26.32378735]
[1738961390215,26.32378735,190.3,190.23,26.32378735]
[1738961390634,26.32378735,190.29,190.22,26.32378735]
[1738961390923,26.32378735,190.27,190.2,26.32378735]
[1738961391128,26.32378735,190.26,190.19,26.32378735]
[1738961391325,26.32378735,190.27,190.2,26.32378735]
[1738961391513,26.32378735,190.28,190.21,26.32378735]
[1738961392241,31.57928735,190.28,190.21,26.32378735]
[1738961393951,31.57928735,190.28,190.2,0.063]
[1738961393952,26.32378735,190.22,190.2,0.063]
[1738961394148,5.257,190.22,190.2,0.063]
[1738961396249,5.257,190.22,190.15,25.88678735]
[1738961396625,5.257,190.22,190.16,26.32378735]
[1738961396832,5.257,190.22,190.15,26.32378735]
[1738961397540,5.257,190.22,190.16,26.32378735]
[1738961399240,5.257,190.22,190.17,26.32378735]
[1738961399555,31.57938735,190.27,190.2,26.32378735]
[1738961400148,26.32378735,190.27,190.2,26.32378735]
[1738961400462,19.54133853,190.35,190.2,26.32378735]
[1738961400463,1.01565009,190.36,190.26,26.32378735]
[1738961400666,5.2834,190.36,190.31,26.32378735]
[1738961400835,0.03,190.36,190.33,26.32378735]
[1738961401032,0.03,190.36,190.35,26.32378735]
[1738961401538,0.03,190.36,190.32,26.32378735]
[1738961401738,0.03,190.36,190.21,8.9677]
[1738961401739,26.32378735,190.33,190.21,8.9677]
[1738961401956,26.32378735,190.29,190.22,26.32378735]
[1738961402147,26.32378735,190.28,190.21,26.32378735]
[1738961402459,26.32378735,190.35,190.27,26.32378735]
[1738961402662,26.35378735,190.36,190.29,26.32378735]
[1738961402849,0.03,190.36,190.29,26.32378735]
[1738961403044,26.32378735,190.35,190.28,26.32378735]
[1738961403374,26.32378735,190.31,190.23,26.32378735]
[1738961403534,26.32378735,190.34,190.27,26.32378735]
[1738961403729,26.35378735,190.36,190.28,26.32378735]
[1738961403934,0.03,190.36,190.3,26.32378735]
[1738961404440,0.03,190.36,190.31,0.12549]
[1738961404651,0.03,190.36,190.35,26.44927735]
[1738961404861,0.03,190.36,190.35,26.57476735]
[1738961405048,0.03,190.36,190.35,40.98661588]
[1738961405251,0.03,190.41,190.39,0.12549]
[1738961405442,0.03,190.41,190.4,45.23871588]
[1738961405640,26.32378735,190.54,190.44,20.12549]
[1738961405850,0.03,190.56,190.5,26.32378735]
[1738961406236,0.03,190.56,190.49,26.32378735]
[1738961406237,26.35378735,190.56,190.49,26.32378735]
[1738961406475,26.32378735,190.54,190.46,26.32378735]
[1738961406645,26.32378735,190.54,190.41,8.2532]
[1738961406646,0.98432303,190.53,190.4,48.25977852]
[1738961406852,0.98432303,190.53,190.39,43.00767852]
[1738961406853,43.00767852,190.46,190.39,43.00767852]
[1738961407071,43.00767852,190.48,190.41,43.00767852]
[1738961407270,6.18432303,190.53,190.36,5.253]
[1738961407271,43.00767852,190.45,190.36,5.253]
[1738961407569,43.00767852,190.45,190.38,43.00767852]
[1738961407775,43.00767852,190.42,190.35,43.00767852]
[1738961407952,43.00767852,190.41,190.34,43.00767852]
[1738961408264,0.9848506,190.48,190.4,43.00767852]
[1738961408265,5.2,190.47,190.4,43.00767852]
[1738961408476,43.00767852,190.48,190.41,0.12549]
[1738961408645,43.00767852,190.5,190.43,43.00767852]
[1738961409269,48.25717852,190.5,190.43,43.00767852]
[1738961409449,43.00767852,190.46,190.39,43.00767852]
[1738961409858,43.00767852,190.45,190.38,43.13316852]
[1738961410167,43.00767852,190.45,190.38,43.00767852]
[1738961410391,43.00767852,190.47,190.4,43.00767852]
[1738961410859,43.00767852,190.44,190.37,43.00767852]
[1738961411273,43.00767852,190.44,190.38,43.00767852]
[1738961411444,48.25867852,190.44,190.37,43.00767852]
[1738961411660,43.00767852,190.44,190.38,43.00767852]
[1738961411852,43.00767852,190.46,190.39,43.00767852]
[1738961412063,5.2501,190.48,190.42,43.00767852]
[1738961412258,43.00767852,190.47,190.4,43.00767852]
[1738961412669,43.00767852,190.41,190.33,43.00767852]
[1738961412851,43.00767852,190.4,190.33,43.00767852]
[1738961413057,43.00767852,190.44,190.37,43.00767852]
[1738961413368,43.00767852,190.47,190.4,43.00767852]
[1738961413575,5.2502,190.47,190.37,5.37809]
[1738961413875,43.00767852,190.46,190.39,43.00767852]
[1738961414081,43.00767852,190.45,190.38,43.00767852]
[1738961414374,43.00767852,190.4,190.33,43.00767852]
[1738961414748,43.00767852,190.39,190.32,43.13316852]
[1738961414955,43.00767852,190.4,190.33,43.00767852]
[1738961415459,48.25977852,190.4,190.33,43.00767852]
[1738961415782,48.25977852,190.4,190.32,5.2542]
[1738961415783,43.00767852,190.39,190.32,43.00767852]
[1738961415986,48.25977852,190.4,190.33,43.00767852]
[1738961416283,43.00767852,190.46,190.39,43.00767852]
[1738961416881,43.00767852,190.45,190.38,43.00767852]
[1738961417051,48.25807852,190.47,190.4,43.00767852]
[1738961417256,43.00767852,190.46,190.39,43.00767852]
[1738961417456,48.25747852,190.49,190.42,43.00767852]
[1738961417678,0.03,190.45,190.43,43.00767852]
[1738961418291,0.03,190.45,190.41,43.00767852]
[1738961418463,0.03,190.45,190.4,43.00767852]
[1738961418776,0.03,190.45,190.38,48.26027852]
[1738961419086,43.00767852,190.39,190.31,43.00767852]
[1738961419253,43.00767852,190.4,190.33,43.00767852]
[1738961419454,43.00767852,190.4,190.33,48.26157852]
[1738961419760,43.00767852,190.4,190.32,5.37969]
[1738961419966,43.00767852,190.36,190.29,43.00767852]
[1738961420163,43.00767852,190.36,190.28,43.00767852]
[1738961420361,43.00767852,190.36,190.29,43.00767852]
[1738961420572,43.00767852,190.37,190.3,43.00767852]
[1738961420975,43.00767852,190.39,190.32,43.00767852]
[1738961421182,54.42167852,190.41,190.33,43.00767852]
[1738961421381,43.00767852,190.39,190.31,43.00767852]
[1738961421593,43.00767852,190.36,190.29,43.00767852]
[1738961421952,43.00767852,190.37,190.3,43.00767852]
[1738961422157,43.00767852,190.34,190.27,43.00767852]
[1738961422368,43.00767852,190.35,190.28,43.00767852]
[1738961422568,43.00767852,190.34,190.27,43.00767852]
[1738961422878,43.00767852,190.37,190.29,43.00767852]
[1738961423081,43.00767852,190.38,190.31,43.00767852]
[1738961423458,43.00767852,190.37,190.3,43.00767852]
[1738961423771,43.00767852,190.34,190.27,43.00767852]
[1738961424097,43.00767852,190.37,190.3,43.00767852]
[1738961424254,43.00767852,190.38,190.31,43.00767852]
[1738961424658,5.2523,190.39,190.32,43.00767852]